bitfinex-derivatives/quotes_SOLF0:USTF0_20251024
["timestamp","ask_amount","ask_price","bid_price","bid_amount"]
[1761264313641,4.22597687,191.31,191.26,2.68]
[1761264313839,4.80380626,191.34,191.26,2.68]
[1761264314135,4.22593769,191.33,191.26,2.68]
[1761264314438,4.22593769,191.32,191.26,2.68]
[1761264314630,4.22593769,191.31,191.26,2.68]
[1761264314831,4.22593769,191.3,191.26,2.68]
[1761264315032,4.80380626,191.33,191.26,2.68]
[1761264315338,4.29048357,191.32,191.26,2.68]
[1761264315539,4.29048357,191.31,191.26,2.68]
[1761264315838,4.29048357,191.3,191.26,2.68]
[1761264316040,4.80380626,191.33,191.26,2.68]
[1761264316337,13.96296876,191.32,191.22,2.68]
[1761264316537,13.96296876,191.31,191.22,2.68]
[1761264316839,9.09498939,191.3,191.22,2.68]
[1761264317030,4.29118313,191.29,191.22,2.68]
[1761264317230,4.29118313,191.28,191.22,2.68]
[1761264317430,4.29118313,191.27,191.22,2.68]
[1761264317626,4.80380626,191.3,191.22,2.68]
[1761264317828,4.29250149,191.29,191.22,2.68]
[1761264318033,4.29250149,191.28,191.22,2.68]
[1761264318234,4.29250149,191.27,191.22,2.68]
[1761264318433,4.29250149,191.26,191.22,2.68]
[1761264318634,4.86797937,191.3,191.22,2.68]
[1761264318834,4.36884193,191.29,191.22,2.68]
[1761264319045,4.36884193,191.28,191.22,2.68]
[1761264319246,4.36884193,191.27,191.22,2.68]
[1761264319435,4.36884193,191.26,191.22,2.68]
[1761264319635,4.86797937,191.3,191.17,2.68]
[1761264319636,4.37019588,191.25,191.17,2.68]
[1761264319835,4.37019588,191.24,191.19,2.68]
[1761264320040,4.37019588,191.23,191.19,2.68]
[1761264320236,4.86797937,191.28,191.19,2.68]
[1761264320438,4.36930159,191.27,191.19,2.68]
[1761264320635,4.36930159,191.26,191.19,2.68]
[1761264320946,4.36930159,191.25,191.19,2.68]
[1761264321140,4.36930159,191.24,191.19,2.68]
[1761264321340,4.86797937,191.28,191.19,2.68]
[1761264321648,4.36771012,191.27,191.19,2.68]
[1761264321835,4.36771012,191.26,191.19,2.68]
[1761264322038,4.36771012,191.25,191.19,2.68]
[1761264322344,4.36771012,191.24,191.19,2.68]
[1761264322537,4.86797937,191.29,191.19,2.68]
[1761264322742,4.3661825,191.28,191.19,2.68]
[1761264322945,4.86797937,191.29,191.19,2.68]
[1761264322946,4.3661825,191.27,191.19,2.68]
[1761264323242,4.3661825,191.26,191.19,2.68]
[1761264323442,4.3661825,191.25,191.19,2.68]
[1761264323643,4.3661825,191.24,191.19,2.68]
[1761264323837,4.86797937,191.29,191.19,2.68]
[1761264324039,4.36481299,191.28,191.19,2.68]
[1761264324239,4.36481299,191.27,191.19,2.68]
[1761264324439,4.36481299,191.26,191.19,2.68]
[1761264324634,4.36481299,191.25,191.19,2.68]
[1761264324939,4.86797937,191.29,191.19,2.68]
[1761264325139,9.23154203,191.28,191.19,2.68]
[1761264325339,4.36356266,191.27,191.19,2.68]
[1761264325539,4.36356266,191.26,191.19,2.68]
[1761264325742,4.36356266,191.25,191.19,2.68]
[1761264325943,4.36356266,191.24,191.19,2.68]
[1761264326143,4.79167144,191.28,191.19,2.68]
[1761264326334,4.36226185,191.27,191.19,2.68]
[1761264326541,4.36226185,191.26,191.19,2.68]
[1761264326746,4.36226185,191.25,191.19,2.68]
[1761264326950,4.36137637,191.24,191.19,2.68]
[1761264327143,4.36115033,191.28,191.19,2.68]
[1761264327447,4.36115033,191.27,191.19,2.68]
[1761264327644,4.86561701,191.32,191.19,2.68]
[1761264327941,4.36075107,191.31,191.22,4.7053]
[1761264328148,4.36075107,191.3,191.23,2.68]
[1761264328346,4.36075107,191.29,191.23,2.68]
[1761264328538,4.36075107,191.28,191.23,2.68]
[1761264328739,4.86561701,191.32,191.23,2.68]
[1761264329039,4.360914,191.31,191.23,2.68]
[1761264329241,4.360914,191.3,191.23,2.68]
[1761264329441,4.360914,191.29,191.23,2.68]
[1761264329641,4.360914,191.28,191.23,2.68]
[1761264329841,4.86561701,191.32,191.23,2.68]
[1761264330143,4.36148303,191.31,191.23,2.68]
[1761264330345,4.36148303,191.3,191.23,2.68]
[1761264330545,4.36148303,191.29,191.23,2.68]
[1761264330749,4.36148303,191.28,191.23,2.68]
[1761264330947,4.86561701,191.32,191.23,2.68]
[1761264331247,4.36170752,191.31,191.23,2.68]
[1761264331450,4.36170752,191.3,191.23,2.68]
[1761264331644,4.36170752,191.29,191.23,2.68]
[1761264331846,4.36170752,191.28,191.23,2.68]
[1761264332045,4.86561701,191.32,191.23,2.68]
[1761264332245,4.36178203,191.31,191.23,2.68]
[1761264332446,4.36178203,191.3,191.23,2.68]
[1761264332648,4.36178203,191.29,191.23,2.68]
[1761264332844,4.86561701,191.33,191.23,2.68]
[1761264333044,4.36189387,191.32,191.23,2.68]
[1761264333343,4.36189387,191.31,191.23,2.68]
[1761264333651,4.36189387,191.3,191.23,2.68]
[1761264333950,4.36189387,191.29,191.23,2.68]
[1761264334139,4.86561701,191.33,191.23,2.68]
[1761264334345,4.36235602,191.32,191.23,2.68]
[1761264334548,4.36235602,191.31,191.23,2.68]
[1761264334748,4.36235602,191.3,191.23,2.68]
[1761264334945,4.36235602,191.29,191.23,2.68]
[1761264335148,4.86561701,191.33,191.23,2.68]
[1761264335451,4.3627855,191.32,191.23,2.68]
[1761264335655,4.3627855,191.31,191.25,2.68]
[1761264335949,4.3627855,191.3,191.25,2.68]
[1761264336150,4.3627855,191.29,191.25,2.68]
[1761264336351,4.86561701,191.33,191.25,2.68]
[1761264336649,4.36351479,191.32,191.25,2.68]
[1761264336853,4.36351479,191.31,191.25,2.68]
[1761264337056,4.36351479,191.3,191.25,2.68]
[1761264337254,4.36351479,191.29,191.25,2.68]
[1761264337453,4.36351479,191.28,191.25,2.68]
[1761264337655,4.86561701,191.33,191.25,2.68]
[1761264337857,4.36405125,191.32,191.25,2.68]
[1761264338050,4.36405125,191.31,191.25,2.68]
[1761264338350,4.36405125,191.3,191.25,2.68]
[1761264338551,4.36405125,191.29,191.25,2.68]
[1761264338754,4.36405125,191.28,191.25,2.68]
[1761264338951,4.86561701,191.33,191.25,2.68]
[1761264339153,4.36464498,191.32,191.25,2.68]
[1761264339459,4.36464498,191.31,191.25,2.68]
[1761264339650,4.36464498,191.3,191.25,2.68]
[1761264339848,4.36464498,191.29,191.25,2.68]
[1761264340048,4.36464498,191.28,191.25,2.68]
[1761264340252,9.65997187,191.32,191.25,2.68]
[1761264340449,4.36602689,191.31,191.25,2.68]
[1761264340648,4.86561701,191.32,191.25,2.68]
[1761264340649,4.36602689,191.3,191.25,2.68]
[1761264340852,4.36602689,191.29,191.25,2.68]
[1761264341052,4.36602689,191.28,191.25,2.68]
[1761264341254,4.86561701,191.32,191.25,2.68]
[1761264341454,4.36681342,191.31,191.25,2.68]
[1761264341657,4.36681342,191.3,191.25,2.68]
[1761264341954,4.36681342,191.29,191.25,2.68]
[1761264342156,4.36681342,191.28,191.25,2.68]
[1761264342357,4.86561701,191.32,191.25,2.68]
[1761264342657,4.36767646,191.31,191.25,2.68]
[1761264342858,4.36767646,191.3,191.25,2.68]
[1761264343060,4.36767646,191.29,191.25,2.68]
[1761264343260,4.36767646,191.28,191.25,2.68]
[1761264343450,4.86561701,191.32,191.25,2.68]
[1761264343650,4.36862462,191.31,191.25,2.68]
[1761264343851,4.36862462,191.3,191.25,2.68]
[1761264344153,4.36862462,191.29,191.25,2.68]
[1761264344351,4.36862462,191.28,191.25,2.68]
[1761264344660,4.86561701,191.32,191.25,2.68]
[1761264344850,4.36898802,191.31,191.25,2.68]
[1761264345051,4.36898802,191.3,191.25,2.68]
[1761264345253,4.36898802,191.29,191.25,2.68]
[1761264345452,4.36898802,191.28,191.25,2.68]
[1761264345655,4.36898802,191.27,191.25,2.68]
[1761264345848,4.86561701,191.32,191.25,2.68]
[1761264346052,4.36978105,191.31,191.25,2.68]
[1761264346252,4.36978105,191.3,191.25,2.68]
[1761264346453,4.36978105,191.29,191.25,2.68]
[1761264346652,4.36978105,191.28,191.25,2.68]
[1761264346852,4.36978105,191.27,191.25,2.68]
[1761264347059,4.86561701,191.32,191.25,2.68]
[1761264347261,4.3704476,191.31,191.25,2.68]
[1761264347461,4.3704476,191.3,191.25,2.68]
[1761264347761,4.3704476,191.29,191.25,2.68]
[1761264347955,4.3704476,191.28,191.25,2.68]
[1761264348157,4.3704476,191.27,191.25,2.68]
[1761264348357,4.86561701,191.31,191.25,2.68]
[1761264348558,4.37204876,191.3,191.25,2.68]
[1761264348758,4.37204876,191.29,191.25,2.68]
[1761264348958,4.37204876,191.28,191.25,2.68]
[1761264349166,4.37204876,191.27,191.25,2.68]
[1761264349359,4.86561701,191.31,191.25,2.68]
[1761264349664,4.37330946,191.3,191.25,2.68]
[1761264349864,4.37330946,191.29,191.25,2.68]
[1761264350064,4.37330946,191.28,191.25,2.68]
[1761264350265,4.37330946,191.27,191.25,2.68]
[1761264350457,4.86561701,191.31,191.25,2.68]
[1761264350658,4.37472381,191.3,191.25,2.68]
[1761264350857,4.37472381,191.29,191.25,2.68]
[1761264351059,4.37472381,191.28,191.25,2.68]
[1761264351363,4.37472381,191.27,191.25,2.68]
[1761264351561,4.37472381,191.26,191.25,2.68]
[1761264356669,4.86561701,191.3,191.25,2.68]
[1761264358670,9.62955152,191.29,191.18,2.68]
[1761264358861,9.63025858,191.28,191.18,2.68]
[1761264359060,4.86561701,191.28,191.18,2.68]
[1761264360060,4.86561701,191.28,191.2,7.5156]
[1761264360263,4.15144232,191.29,191.2,2.81]
[1761264360264,9.63070538,191.27,191.2,2.81]
[1761264360472,9.63096394,191.26,191.2,2.81]
[1761264360676,4.86561701,191.26,191.2,2.81]
[1761264361372,6.50547239,191.22,191.09,18.8342539]
[1761264361567,4.8877658,191.18,191.1,2.81]
[1761264362376,4.8877658,191.19,191.1,2.81]
[1761264362970,9.64781229,191.19,191.1,2.81]
[1761264363166,4.8877658,191.19,191.1,2.81]
[1761264363371,4.8877658,191.2,191.1,2.81]
[1761264363576,4.8877658,191.19,191.1,2.81]
[1761264363777,9.64474131,191.2,191.1,2.81]
[1761264364077,4.8877658,191.2,191.1,2.81]
[1761264364583,9.64447675,191.2,191.1,2.81]
[1761264364777,4.8877658,191.2,191.1,2.81]
[1761264365372,4.8877658,191.21,191.1,2.81]
[1761264365771,9.63935598,191.21,191.1,2.81]
[1761264365974,4.8877658,191.21,191.1,2.81]
[1761264366978,4.8877658,191.2,191.1,2.81]
[1761264367280,4.8877658,191.21,191.1,2.81]
[1761264368281,4.8877658,191.21,191.1,7.5182]
[1761264368582,4.8877658,191.21,191.11,2.81]
[1761264368782,4.34309691,191.2,191.11,2.81]
[1761264369079,4.34309691,191.19,191.11,2.81]
[1761264369275,4.34309691,191.18,191.11,2.81]
[1761264369470,4.34309691,191.17,191.11,2.81]
[1761264369675,4.34309691,191.16,191.11,2.81]
[1761264369874,4.8877658,191.2,191.11,2.81]
[1761264370074,4.34196183,191.19,191.11,2.81]
[1761264370276,4.34196183,191.18,191.08,2.81]
[1761264370477,4.34196183,191.17,191.08,2.81]
[1761264370668,4.34196183,191.16,191.08,2.81]
[1761264370870,4.34196183,191.15,191.08,2.81]
[1761264371182,4.34196183,191.14,191.08,2.81]
[1761264371381,4.8877658,191.19,191.08,2.81]
[1761264371580,4.33809619,191.18,191.08,2.81]
[1761264371776,4.33809619,191.17,191.08,2.81]
[1761264371974,4.33809619,191.16,191.08,2.81]
[1761264372174,4.33809619,191.15,191.08,2.81]
[1761264372478,4.8877658,191.19,191.08,2.81]
[1761264372682,4.33618318,191.18,191.08,2.81]
[1761264372885,4.33618318,191.17,191.08,2.81]
[1761264373179,4.33618318,191.16,191.08,2.81]
[1761264373482,4.33618318,191.15,191.08,2.81]
[1761264373680,4.33618318,191.19,191.08,2.81]
[1761264373881,4.33618318,191.18,191.08,2.81]
[1761264374070,4.33618318,191.17,191.08,2.81]
[1761264374273,4.33618318,191.16,191.08,2.81]
[1761264374482,4.8877658,191.2,191.08,2.81]
[1761264374682,4.33292069,191.19,191.08,2.81]
[1761264374884,4.33292069,191.18,191.08,2.81]
[1761264375180,4.33292069,191.17,191.08,2.81]
[1761264375483,4.33292069,191.16,191.08,2.81]
[1761264375785,4.33292069,191.15,191.08,2.81]
[1761264375984,4.33292069,191.19,191.08,2.81]
[1761264376284,4.33292069,191.18,191.08,2.81]
[1761264376484,4.33292069,191.17,191.08,2.81]
[1761264376685,4.33292069,191.16,191.08,2.81]
[1761264376885,4.8877658,191.2,191.08,2.81]
[1761264377086,4.38096334,191.19,191.08,2.81]
[1761264377393,4.38096334,191.18,191.08,2.81]
[1761264377591,4.8877658,191.2,191.08,2.81]
[1761264377592,4.38096334,191.17,191.08,2.81]
[1761264377882,4.37977701,191.19,191.1,2.81]
[1761264378088,4.8877658,191.23,191.1,2.81]
[1761264378290,4.37949479,191.22,191.1,2.81]
[1761264378489,4.37949479,191.21,191.1,2.81]
[1761264378693,4.37949479,191.2,191.1,2.81]
[1761264378890,4.37949479,191.19,191.1,2.81]
[1761264379094,112.56620677,191.28,191.08,2.81]
[1761264379095,4.37949479,191.18,191.08,2.81]
[1761264379287,102.80799819,191.28,191.08,2.81]
[1761264379288,4.37949479,191.17,191.08,2.81]
[1761264379488,4.37949479,191.2,191.08,2.81]
[1761264379788,4.37949479,191.19,191.09,2.81]
[1761264379988,4.37949479,191.18,191.09,2.81]
[1761264380289,4.37949479,191.17,191.09,2.81]
[1761264380491,4.37949479,191.16,191.09,2.81]
[1761264380691,4.37949479,191.2,191.09,2.81]
[1761264380889,4.37949479,191.19,191.09,2.81]
[1761264381089,4.37949479,191.18,191.09,2.81]
[1761264381286,4.37949479,191.17,191.09,2.81]
[1761264381485,4.37949479,191.16,191.09,2.81]
[1761264381696,9.26726059,191.2,191.06,2.81]
[1761264381889,102.80799819,191.28,191.06,46.37]
[1761264381890,9.26726059,191.19,191.06,46.37]
[1761264382188,4.37949479,191.18,191.06,46.37]
[1761264382389,4.37949479,191.17,191.06,43.56]
[1761264382589,4.37949479,191.16,191.07,2.81]
[1761264382894,4.37949479,191.15,191.07,2.81]
[1761264383095,4.37949479,191.14,191.07,2.81]
[1761264383392,9.26726059,191.18,191.07,2.81]
[1761264383593,4.37949479,191.17,191.07,2.81]
[1761264383784,4.37949479,191.16,191.07,2.81]
[1761264383985,4.37949479,191.15,191.07,2.81]
[1761264384188,4.37949479,191.14,191.07,2.81]
[1761264384494,4.8877658,191.18,191.07,2.81]
[1761264384688,4.37623981,191.17,191.07,2.81]
[1761264384888,4.37623981,191.16,191.07,2.81]
[1761264385085,4.37623981,191.15,191.07,2.81]
[1761264385286,4.37623981,191.15,190.99,78.9605765]
[1761264385287,4.37623981,191.14,190.99,0.91066101]
[1761264385482,4.37623981,191.14,191.0,2.81]
[1761264385483,4.8877658,191.11,191.0,2.81]
[1761264385688,9.26400561,191.1,191.0,2.81]
[1761264385898,4.8877658,191.14,191.05,2.81]
[1761264386088,4.3749405,191.13,191.05,2.81]
[1761264386288,4.3749405,191.12,191.05,2.81]
[1761264386589,4.8877658,191.16,191.05,2.81]
[1761264386590,4.3749405,191.11,191.05,2.81]
[1761264386794,4.8877658,191.15,191.05,2.81]
[1761264387096,4.37381339,191.14,191.05,2.81]
[1761264387296,4.37381339,191.13,191.05,2.81]
[1761264387490,4.37381339,191.12,191.05,2.81]
[1761264387695,4.37381339,191.11,191.05,2.81]
[1761264387996,4.37315974,191.14,191.07,2.74]
[1761264388197,4.8877658,191.19,191.07,2.74]
[1761264388396,4.37300987,191.18,191.07,2.74]
[1761264388594,4.37300987,191.17,191.07,2.74]
[1761264388794,4.37300987,191.16,191.07,2.74]
[1761264389002,4.37300987,191.15,191.09,2.72]
[1761264389200,4.37300987,191.14,191.09,2.72]
[1761264389495,4.8877658,191.18,191.09,2.72]
[1761264389794,4.37366776,191.17,191.09,2.72]
[1761264389994,4.37366776,191.16,191.09,2.72]
[1761264390194,4.37366776,191.15,191.09,2.72]
[1761264390395,4.37366776,191.14,191.09,2.72]
[1761264390584,4.8877658,191.18,191.09,2.72]
[1761264390887,4.37421843,191.17,191.09,2.72]
[1761264391088,4.37421843,191.16,191.09,2.72]
[1761264391293,4.37421843,191.15,191.09,2.72]
[1761264391491,4.37421843,191.14,191.09,2.72]
[1761264391693,4.8877658,191.18,191.09,2.72]
[1761264391996,4.37498077,191.17,191.09,2.72]
[1761264392297,4.37498077,191.16,191.09,2.72]
[1761264392498,4.37498077,191.15,191.09,2.72]
[1761264392795,4.37498077,191.14,191.09,2.72]
[1761264392994,4.37498077,191.13,191.09,2.72]
[1761264393197,4.8877658,191.18,191.09,2.72]
[1761264393383,9.26476329,191.17,191.06,2.72]
[1761264393588,4.8877658,191.14,191.06,2.72]
[1761264393889,9.26476329,191.13,191.01,2.72]
[1761264394087,4.37699749,191.12,191.01,2.72]
[1761264394293,4.37699749,191.11,191.01,2.72]
[1761264394490,4.37699749,191.1,191.01,2.72]
[1761264394799,4.37699749,191.09,191.01,2.72]
[1761264394992,4.8877658,191.13,191.0,9.22]
[1761264394993,4.37699749,191.08,191.02,4.71]
[1761264395296,4.37933083,191.07,191.0,2.72]
[1761264395493,4.8877658,191.11,191.0,2.72]
[1761264395694,4.37945452,191.1,191.0,2.72]
[1761264395993,4.37945452,191.09,191.0,2.72]
[1761264396192,4.37945452,191.08,191.0,2.72]
[1761264396398,4.37945452,191.07,191.0,2.72]
[1761264396597,4.37945452,191.06,191.0,2.72]
[1761264396797,4.8877658,191.11,191.0,2.72]
[1761264396998,4.38016578,191.1,191.01,4.7105]
[1761264397194,4.38016578,191.09,191.02,2.72]
[1761264397396,4.38016578,191.08,191.02,2.72]
[1761264397593,4.38016578,191.07,191.02,2.72]
[1761264397906,4.38016578,191.06,191.02,2.72]
[1761264398206,4.8877658,191.11,191.02,2.72]
[1761264398398,9.27019444,191.1,191.02,2.72]
[1761264398593,4.38242864,191.09,191.02,2.72]
[1761264398900,4.38242864,191.08,191.02,2.72]
[1761264399100,4.38242864,191.07,191.02,2.72]
[1761264399302,4.38242864,191.06,191.02,2.72]
[1761264399500,4.38242864,191.05,191.02,2.72]
[1761264399692,4.8877658,191.1,191.02,2.72]
[1761264399894,4.38403132,191.09,191.02,2.72]
[1761264400097,4.38403132,191.08,191.02,2.72]
[1761264400399,4.38403132,191.07,191.02,2.72]
[1761264400599,4.38403132,191.06,191.02,2.72]
[1761264400800,4.38403132,191.05,191.02,2.72]
[1761264400993,4.8877658,191.09,191.02,2.72]
[1761264401192,4.38429763,191.08,191.02,2.72]
[1761264401395,4.38429763,191.07,191.02,2.72]
[1761264401694,4.38429763,191.06,191.02,2.72]
[1761264401897,4.38429763,191.05,191.02,2.72]
[1761264402094,4.38429763,191.04,191.02,2.72]
[1761264402294,4.39005431,191.03,191.02,2.72]
[1761264408501,4.39005431,191.03,191.0,2.72]
[1761264408702,4.39005431,191.02,191.0,2.72]
[1761264408907,4.8877658,191.06,191.0,2.72]
[1761264409208,4.38659311,191.05,191.0,2.72]
[1761264409507,4.38659311,191.04,191.0,2.72]
[1761264409707,4.38659311,191.03,191.0,2.72]
[1761264409908,6.50547239,191.09,191.0,2.72]
[1761264409909,4.38659311,191.02,191.0,2.72]
[1761264410109,4.8877658,191.07,191.01,2.72]
[1761264410307,4.38639645,191.06,191.01,2.72]
[1761264410509,4.38639645,191.05,191.01,2.72]
[1761264410710,4.38639645,191.04,191.01,2.72]
[1761264410912,4.38639645,191.03,191.01,2.72]
[1761264411110,4.8877658,191.07,191.01,2.72]
[1761264411311,4.38623727,191.06,191.01,2.72]
[1761264411507,4.3864849,191.05,191.01,2.72]
[1761264411710,4.3864849,191.04,191.01,2.72]
[1761264411905,4.3864849,191.03,191.01,2.72]
[1761264412113,4.87679436,191.07,191.01,2.72]
[1761264412309,4.38635804,191.06,191.01,2.72]
[1761264412511,4.38635804,191.05,191.01,2.72]
[1761264412707,4.38635804,191.04,191.01,2.72]
[1761264412908,4.38635804,191.03,191.01,2.72]
[1761264413110,4.87679436,191.08,191.01,2.72]
[1761264413309,4.38663748,191.07,191.01,2.72]
[1761264413608,4.38663748,191.06,191.01,2.72]
[1761264413811,4.38663748,191.05,191.01,2.72]
[1761264414013,4.38663748,191.04,191.01,2.72]
[1761264414214,4.38663748,191.03,191.01,2.72]
[1761264414411,4.87679436,191.08,191.01,2.72]
[1761264414611,4.38755709,191.07,191.01,2.72]
[1761264414811,4.38755709,191.06,191.01,2.72]
[1761264415109,4.38755709,191.05,191.01,2.72]
[1761264415412,4.38755709,191.04,191.01,2.72]
[1761264415612,4.87679436,191.08,191.01,2.72]
[1761264415813,4.38765032,191.07,191.01,2.72]
[1761264416018,4.38765032,191.06,191.01,2.72]
[1761264416214,4.38765032,191.05,191.01,2.72]
[1761264416516,4.38765032,191.04,191.01,2.72]
[1761264416714,4.87679436,191.09,191.01,2.72]
[1761264416915,4.38762631,191.08,191.01,2.72]
[1761264417216,4.38762631,191.07,191.01,2.72]
[1761264417416,4.38762631,191.06,191.01,2.72]
[1761264417617,4.38762631,191.05,191.01,2.72]
[1761264417815,4.38762631,191.04,191.01,2.72]
[1761264418017,4.87679436,191.08,191.01,2.72]
[1761264418220,4.38766274,191.07,191.01,2.72]
[1761264418516,4.38766274,191.06,191.01,2.72]
[1761264418711,4.87679436,191.08,191.01,2.72]
[1761264418712,4.38766274,191.05,191.01,2.72]
[1761264418912,4.38766274,191.04,191.01,2.72]
[1761264419113,4.87679436,191.08,191.01,2.72]
[1761264419414,4.3879382,191.07,191.01,2.72]
[1761264419614,4.3879382,191.06,191.01,2.72]
[1761264419815,4.3879382,191.05,191.01,2.72]
[1761264420022,4.3879382,191.04,191.01,46.28]
[1761264420224,4.87679436,191.08,191.01,46.28]
[1761264420423,4.38816753,191.07,191.02,2.76]
[1761264420624,4.38816753,191.06,191.02,2.76]
[1761264420826,4.38816753,191.05,191.02,2.76]
[1761264421021,4.38816753,191.04,191.02,2.76]
[1761264421222,4.87679436,191.08,191.02,2.76]
[1761264421421,4.38843955,191.07,191.02,2.76]
[1761264421622,4.38843955,191.06,191.02,2.76]
[1761264421927,4.38843955,191.05,191.01,43.56]
[1761264422229,4.38843955,191.04,191.01,43.56]
[1761264422429,4.38843955,191.03,191.01,43.56]
[1761264422635,4.38843955,191.02,191.01,43.56]
[1761264425831,4.38843955,191.02,190.97,43.56]
[1761264426023,4.38843955,191.01,190.97,43.56]
[1761264426226,4.38843955,191.0,190.96,7.4717]
[1761264426420,4.38659914,190.99,190.97,43.56]
[1761264426625,4.87679436,191.04,190.96,51.0317]
[1761264426924,4.87679436,191.02,190.96,51.0317]
[1761264427125,4.38659944,191.01,190.96,51.0317]
[1761264427332,4.38659944,191.0,190.96,51.0317]
[1761264427527,4.38659944,190.99,190.96,51.0317]
[1761264427733,4.38659944,190.98,190.97,2.76]
[1761264429237,4.87679436,191.03,190.97,2.76]
[1761264429426,4.38348045,191.02,190.97,2.76]
[1761264429629,4.38348045,191.01,190.97,2.76]
[1761264429826,4.38348045,191.0,190.97,2.76]
[1761264430026,4.38348045,190.99,190.97,2.76]
[1761264430226,4.87679436,191.03,190.97,2.76]
[1761264430427,4.38407926,191.02,190.97,2.76]
[1761264430630,4.38407926,191.01,190.97,2.76]
[1761264430927,4.38407926,191.0,190.97,2.76]
[1761264431128,4.38407926,190.99,190.97,2.76]
[1761264431328,4.38407926,190.98,190.97,2.76]
[1761264434030,4.87679436,191.03,190.97,2.76]
[1761264434336,4.38244652,191.02,190.97,2.76]
[1761264434534,4.38244652,191.01,190.97,2.76]
[1761264434838,4.38244652,191.0,190.97,2.76]
[1761264435036,4.38244652,190.99,190.97,2.76]
[1761264435239,4.39597749,190.98,190.97,2.76]
[1761264445943,4.87679436,191.03,190.98,2.76]
[1761264446149,4.87679436,191.06,191.0,2.76]
[1761264446340,4.87679436,191.07,191.0,2.76]
[1761264447050,4.87679436,191.06,191.0,2.76]
[1761264449846,13.71665646,191.06,190.99,43.56]
[1761264450048,4.87679436,191.04,190.99,43.56]
[1761264450445,4.87679436,191.04,190.99,46.36]
[1761264451751,4.87679436,191.04,190.99,43.56]
[1761264452751,4.87679436,191.03,190.99,43.56]
[1761264453352,4.87679436,191.02,190.99,43.56]
[1761264457958,4.36172014,191.01,190.99,43.56]
[1761264458256,4.36172014,191.0,190.99,43.56]
[1761264460456,4.36172014,191.0,190.96,2.8]
[1761264460756,4.36172014,190.99,190.96,2.8]
[1761264461062,4.36172014,190.98,190.96,2.8]
[1761264461359,4.36172014,190.97,190.96,2.8]
[1761264466462,4.36172014,190.97,190.95,43.56]
[1761264466759,4.36172014,190.96,190.93,2.8]
[1761264467067,4.36172014,190.95,190.94,46.36]
[1761264467562,4.36172014,190.95,190.94,2.8]
[1761264467763,4.36172014,190.95,190.94,46.36]
[1761264475365,4.36172014,190.95,190.91,4.7127]
[1761264475564,4.87679436,190.99,190.92,43.56]
[1761264475877,4.87679436,191.01,190.93,43.56]
[1761264476066,4.87679436,191.01,190.94,43.56]
[1761264476963,4.87679436,191.01,190.95,43.56]
[1761264477773,12.29261,191.01,190.96,2.8]
[1761264477973,7.62679436,191.01,190.96,2.8]
[1761264479568,4.87679436,191.01,190.96,2.8]
[1761264479876,4.87679436,191.02,190.96,2.8]
[1761264480076,4.87679436,191.03,190.96,2.8]
[1761264482974,4.87679436,191.05,190.96,3.65]
[1761264483176,9.23547239,191.18,190.98,2.61]
[1761264483384,4.66305239,191.17,190.98,2.61]
[1761264483575,7.39305239,191.16,191.01,2.61]
[1761264483878,2.73,191.15,191.06,2.61]
[1761264484080,2.73,191.15,191.08,2.61]
[1761264485282,2.73,191.23,191.08,2.61]
[1761264485482,2.73,191.21,191.08,2.61]
[1761264485682,6.50547239,191.25,191.08,2.61]
[1761264485683,2.73,191.19,191.08,2.61]